bitfinex/quotes_BTCUSD_20230110
["timestamp","ask_amount","ask_price","bid_price","bid_amount"]
[1673326638714,0.97147417,17223.0,17222.0,0.3865807]
[1673326638962,0.60953317,17223.0,17222.0,0.3865807]
[1673326639213,0.60953317,17223.0,17222.0,0.38648035]
[1673326641990,0.97147417,17223.0,17222.0,0.38648035]
[1673326642243,0.60953317,17223.0,17222.0,0.38648035]
[1673326642492,0.60953317,17223.0,17222.0,0.3865807]
[1673326642746,0.60953317,17223.0,17222.0,0.38648035]
[1673326643557,0.60953317,17223.0,17222.0,0.3865807]
[1673326645364,0.60953317,17223.0,17222.0,0.38648035]
[1673326646141,0.60953317,17223.0,17222.0,0.3865807]
[1673326646384,0.60953317,17223.0,17222.0,0.38648035]
[1673326647667,1.40685076,17223.0,17222.0,0.38648035]
[1673326647915,0.6095711,17223.0,17222.0,0.38648035]
[1673326648171,0.6095711,17223.0,17222.0,1.00610035]
[1673326648391,0.43546817,17223.0,17222.0,2.21086225]
[1673326648927,0.43546817,17223.0,17222.0,1.84892125]
[1673326649865,0.43546817,17223.0,17222.0,1.84292125]
[1673326650108,0.43646817,17223.0,17222.0,1.88192125]
[1673326651836,0.43646817,17223.0,17222.0,1.8818209]
[1673326652124,0.6105711,17223.0,17222.0,1.8818209]
[1673326652866,0.6105711,17223.0,17222.0,1.8837328]
[1673326653576,0.78475481,17223.0,17222.0,1.8837328]
[1673326653854,0.6105711,17223.0,17222.0,1.8837328]
[1673326654617,0.78475384,17223.0,17222.0,1.8818209]
[1673326654854,0.6105711,17223.0,17222.0,1.8837328]
[1673326655107,0.78475355,17223.0,17222.0,1.8837328]
[1673326655344,0.6105711,17223.0,17222.0,1.8837328]
[1673326656374,0.6105711,17223.0,17222.0,0.88201183]
[1673326662598,0.43646465,17223.0,17222.0,1.88201183]
[1673326666479,0.6105711,17223.0,17222.0,1.8818209]
[1673326666769,0.6105711,17223.0,17222.0,0.8818209]
[1673326667014,0.61055753,17223.0,17222.0,0.8818209]
[1673326667259,0.6105591,17223.0,17222.0,0.8818209]
[1673326667791,0.6105591,17223.0,17222.0,1.8818209]
[1673326668002,0.78473522,17223.0,17222.0,1.8818209]
[1673326668247,0.43644564,17223.0,17222.0,1.7140209]
[1673326669479,0.43644564,17223.0,17222.0,2.0759619]
[1673326669725,0.43644564,17223.0,17222.0,1.71594548]
[1673326671477,0.17517612,17223.0,17222.0,2.07788648]
[1673326671719,0.43644564,17223.0,17222.0,2.07788648]
[1673326671975,0.43644564,17223.0,17222.0,1.71594548]
[1673326673440,0.43644564,17223.0,17222.0,2.07788648]
[1673326673688,0.17517612,17223.0,17222.0,1.71594548]
[1673326673937,0.43644564,17223.0,17222.0,1.71594548]
[1673326674682,0.17517612,17223.0,17222.0,2.07788648]
[1673326675184,0.001,17223.0,17222.0,2.55171017]
[1673326675440,0.001,17223.0,17222.0,2.25171017]
[1673326677242,0.001,17223.0,17222.0,2.41971017]
[1673326678732,0.17517612,17223.0,17222.0,2.24588648]
[1673326678974,0.17517612,17223.0,17222.0,1.88394548]
[1673326679216,0.17517612,17223.0,17222.0,2.18394548]
[1673326679470,0.001,17223.0,17222.0,2.24588648]
[1673326680458,0.17517612,17223.0,17222.0,2.24588648]
[1673326681424,0.001,17223.0,17222.0,2.24588648]
[1673326684505,0.17517612,17223.0,17222.0,1.88211712]
[1673326684999,0.17517612,17223.0,17222.0,0.88211712]
[1673326685248,0.43644564,17223.0,17222.0,0.7140209]
[1673326685507,0.9725001,17223.0,17222.0,0.7140209]
[1673326685757,0.6105591,17223.0,17222.0,0.7140209]
[1673326686271,0.78468651,17223.0,17222.0,0.7140209]
[1673326686528,0.78468666,17223.0,17222.0,0.7140209]
[1673326686773,0.43639708,17223.0,17222.0,0.7140209]
[1673326687296,0.6105591,17223.0,17222.0,0.7140209]
[1673326687542,0.43639649,17223.0,17222.0,0.7140209]
[1673326688035,0.42696931,17223.0,17222.0,0.7140209]
[1673326688545,0.42696931,17223.0,17222.0,0.71420395]
[1673326688793,0.60113192,17223.0,17222.0,0.7140209]
[1673326689807,0.60113192,17223.0,17222.0,0.71420395]
[1673326690814,0.77524591,17223.0,17222.0,0.71420395]
[1673326691064,0.42695633,17223.0,17222.0,0.71420395]
[1673326691821,0.60113192,17223.0,17222.0,0.71420395]
[1673326692851,0.4269528,17223.0,17222.0,0.71420395]
[1673326694115,0.60113192,17223.0,17222.0,0.7140209]
[1673326694888,0.71023058,17223.0,17222.0,0.7140209]
[1673326695157,0.34828958,17223.0,17222.0,0.7140209]
[1673326696163,0.71023058,17223.0,17222.0,0.7140209]
[1673326696924,0.97138909,17223.0,17222.0,0.7140209]
[1673326697684,0.60944809,17223.0,17222.0,0.7140209]
[1673326697940,0.97138909,17223.0,17222.0,0.7140209]
[1673326698204,1.14556862,17223.0,17222.0,0.7140209]
[1673326698452,0.97137774,17223.0,17222.0,0.7140209]
[1673326701341,1.40671578,17223.0,17222.0,0.7140209]
[1673326701730,0.97137774,17223.0,17222.0,0.7140209]
[1673326701980,1.14556862,17223.0,17222.0,0.7140209]
[1673326702762,0.97133351,17223.0,17222.0,0.71420395]
[1673326703265,0.97133351,17223.0,17222.0,0.7140209]
[1673326704536,0.70675351,17223.0,17222.0,0.7140209]
[1673326704791,0.88080824,17223.0,17222.0,0.7140209]
[1673326705041,0.43515766,17223.0,17222.0,0.7140209]
[1673326706794,0.43515766,17223.0,17222.0,0.039]
[1673326707012,1.05014364,17223.0,17222.0,0.57774898]
[1673326707291,1.39827094,17223.0,17222.0,0.57774898]
[1673326708564,0.79702665,17223.0,17222.0,0.57774898]
[1673326708808,0.43508565,17223.0,17222.0,1.57774898]
[1673326709062,0.17403426,17223.0,17222.0,1.57774898]
[1673326709306,0.43508565,17223.0,17222.0,1.57774898]
[1673326709818,0.79702665,17223.0,17222.0,1.57774898]
[1673326710067,0.43508565,17223.0,17222.0,1.57774898]
[1673326710325,0.79702665,17223.0,17222.0,1.57774898]
[1673326710573,0.43508565,17223.0,17222.0,1.57774898]
[1673326711045,0.79702665,17223.0,17222.0,1.57774898]
[1673326711830,0.97111969,17223.0,17222.0,1.57767386]
[1673326712087,0.70653969,17223.0,17222.0,0.57767386]
[1673326712340,0.60917869,17223.0,17222.0,0.57767386]
[1673326712625,0.97111969,17223.0,17222.0,0.57767386]
[1673326713113,0.60917869,17223.0,17222.0,0.57767386]
[1673326713431,0.97111969,17223.0,17222.0,0.57767386]
[1673326713645,0.70653969,17223.0,17222.0,0.57767386]
[1673326715157,0.88082634,17223.0,17222.0,0.03892488]
[1673326715420,1.03457523,17223.0,17222.0,0.03892488]
[1673326715687,1.39651623,17223.0,17222.0,0.03892488]
[1673326716981,1.40648478,17223.0,17222.0,0.03892488]
[1673326717297,1.14540634,17223.0,17222.0,0.03892488]
[1673326717782,1.13330634,17223.0,17222.0,0.03892488]
[1673326718046,0.77136534,17223.0,17222.0,0.03892488]
[1673326718283,1.3836917,17223.0,17222.0,0.03892488]
[1673326719560,1.13330634,17223.0,17222.0,0.03892488]
[1673326719812,0.77136534,17223.0,17222.0,0.03892488]
[1673326720063,1.13330634,17223.0,17222.0,0.03892488]
[1673326720310,1.38480096,17223.0,17222.0,0.03892488]
[1673326720828,1.02285996,17223.0,17222.0,0.03892488]
[1673326721079,1.38480096,17223.0,17222.0,0.03892488]
[1673326721608,1.12022096,17223.0,17222.0,0.03892488]
[1673326722392,1.13330634,17223.0,17222.0,0.0390211]
[1673326722635,1.13330634,17223.0,17222.0,0.03892488]
[1673326722894,1.38480393,17223.0,17222.0,0.03892488]
[1673326723392,1.02286293,17223.0,17222.0,0.03892488]
[1673326723654,1.38480393,17223.0,17222.0,0.03892488]
[1673326724891,1.12022393,17223.0,17222.0,0.03892488]
[1673326725116,1.02286293,17223.0,17222.0,0.03892488]
[1673326725368,1.02286293,17223.0,17222.0,0.44788298]
[1673326725613,0.77136534,17223.0,17222.0,0.4479792]
[1673326725860,0.77136534,17223.0,17222.0,0.44788298]
[1673326726576,1.3841653,17223.0,17222.0,0.44788298]
[1673326726800,1.38416519,17223.0,17222.0,0.44788298]
[1673326727019,1.02222419,17223.0,17222.0,0.44788298]
[1673326727515,0.77136534,17223.0,17222.0,0.44788298]
[1673326727767,1.03257672,17223.0,17222.0,0.44788298]
[1673326728011,0.95917968,17223.0,17222.0,0.44788298]
[1673326728518,1.02223534,17223.0,17222.0,0.44788298]
[1673326728788,1.38417634,17223.0,17222.0,0.44788298]
[1673326730004,1.02223534,17223.0,17222.0,0.44788298]
[1673326730253,1.13330634,17223.0,17222.0,0.44788298]
[1673326731035,0.77136534,17223.0,17222.0,0.44788298]
[1673326731281,1.13330634,17223.0,17222.0,0.44788298]
[1673326731533,1.03259,17223.0,17222.0,0.44788298]
[1673326731763,0.77136534,17223.0,17222.0,0.44788298]
[1673326732286,1.13330634,17223.0,17222.0,0.44788298]
[1673326732536,0.77136534,17223.0,17222.0,0.44788298]
[1673326732782,1.13330634,17223.0,17222.0,0.44788298]
[1673326733037,1.02300248,17223.0,17222.0,0.44788298]
[1673326733302,1.38494348,17223.0,17222.0,0.44788298]
[1673326733553,1.02300248,17223.0,17222.0,0.44788298]
[1673326733801,1.38494348,17223.0,17222.0,0.44788298]
[1673326734012,1.02300248,17223.0,17222.0,0.44788298]
[1673326734298,1.38494348,17223.0,17222.0,0.44788298]
[1673326734551,1.02300248,17223.0,17222.0,0.44788298]
[1673326734782,1.38494348,17223.0,17222.0,0.44788298]
[1673326735018,1.02300248,17223.0,17222.0,0.44788298]
[1673326735267,1.38494348,17223.0,17222.0,0.44788298]
[1673326735513,1.02300248,17223.0,17222.0,0.44788298]
[1673326735729,1.38494348,17223.0,17222.0,0.44788298]
[1673326735947,1.02300248,17223.0,17222.0,0.44788298]
[1673326736222,1.38494348,17223.0,17222.0,0.44788298]
[1673326736473,1.02300248,17223.0,17222.0,0.44788298]
[1673326736727,1.38494348,17223.0,17222.0,0.44788298]
[1673326736945,1.02300248,17223.0,17222.0,0.44788298]
[1673326737204,1.38494348,17223.0,17222.0,0.44788298]
[1673326737707,1.02300248,17223.0,17222.0,0.44788298]
[1673326737954,1.38494348,17223.0,17222.0,0.44788298]
[1673326738202,1.02300248,17223.0,17222.0,0.44788298]
[1673326738444,1.38494348,17223.0,17222.0,0.44788298]
[1673326738694,1.02300248,17223.0,17222.0,0.44788298]
[1673326738959,1.38494348,17223.0,17222.0,0.44788298]
[1673326739213,1.02300248,17223.0,17222.0,0.44788298]
[1673326739426,1.38494348,17223.0,17222.0,0.44788298]
[1673326739640,1.02300248,17223.0,17222.0,0.44788298]
[1673326739908,1.38494348,17223.0,17222.0,0.44788298]
[1673326740146,1.02300248,17223.0,17222.0,0.44788298]
[1673326740401,1.38494348,17223.0,17222.0,0.44788298]
[1673326740617,1.12036348,17223.0,17222.0,0.4479792]
[1673326740902,1.02300248,17223.0,17222.0,0.44788298]
[1673326741148,1.38494348,17223.0,17222.0,0.44788298]
[1673326741392,1.02300248,17223.0,17222.0,0.44788298]
[1673326741671,1.38494348,17223.0,17222.0,0.44788298]
[1673326742389,0.68697518,17223.0,17222.0,0.4477919]
[1673326742640,1.59726386,17223.0,17222.0,0.4477919]
[1673326742892,1.24891618,17223.0,17222.0,0.4477919]
[1673326743107,0.88697518,17223.0,17222.0,0.4477919]
[1673326743282,1.24891618,17223.0,17222.0,0.4477919]
[1673326743734,0.88697518,17223.0,17222.0,0.4477919]
[1673326743974,1.24891618,17223.0,17222.0,0.4477919]
[1673326744182,1.59726376,17223.0,17222.0,0.4477919]
[1673326744637,1.23532276,17223.0,17222.0,0.4477919]
[1673326744812,1.24891618,17223.0,17222.0,0.4477919]
[1673326748598,0.81357814,17223.0,17222.0,0.4477919]
[1673326750896,0.81357814,17223.0,17222.0,0.0388338]
[1673326750897,2.38529019,17223.0,17222.0,0.0388338]
[1673326751159,1.96476959,17223.0,17222.0,0.0388338]
[1673326751416,0.81357814,17223.0,17222.0,0.0388338]
[1673326751676,0.88709193,17223.0,17222.0,0.45522938]
[1673326751894,1.23544894,17223.0,17222.0,0.45513316]
[1673326753430,1.59738994,17223.0,17222.0,0.45513316]
[1673326753924,0.88709193,17223.0,17222.0,0.45513316]
[1673326754168,1.24903293,17223.0,17222.0,0.45513316]
[1673326754412,0.88709193,17223.0,17222.0,0.45513316]
[1673326754656,1.24903293,17223.0,17222.0,0.45513316]
[1673326755381,1.23545595,17223.0,17222.0,0.45513316]
[1673326756110,1.03546167,17223.0,17222.0,0.45513316]
[1673326757855,0.78382453,17223.0,17222.0,0.45513316]
[1673326758095,1.03690836,17223.0,17222.0,0.45513316]
[1673326758341,1.39884936,17223.0,17222.0,0.45513316]
[1673326758590,0.78382453,17223.0,17222.0,0.45513316]
[1673326758836,1.03690821,17223.0,17222.0,0.45513316]
[1673326759080,0.78382453,17223.0,17222.0,0.45513316]
[1673326759372,1.03595708,17223.0,17222.0,0.45522938]
[1673326760398,1.03595708,17223.0,17222.0,0.45513316]
[1673326760893,1.03595708,17223.0,17222.0,0.45522938]
[1673326761161,0.78382453,17223.0,17222.0,0.45513316]
[1673326761654,1.03594585,17223.0,17222.0,0.45513316]
[1673326762143,0.78382453,17223.0,17222.0,0.45513316]
[1673326762410,1.03594869,17223.0,17222.0,0.45513316]
[1673326762674,1.03594652,17223.0,17222.0,0.45513316]
[1673326762925,0.78382453,17223.0,17222.0,1.45522938]
[1673326763426,0.78382453,17223.0,17222.0,1.45513316]
[1673326763674,1.0359484,17223.0,17222.0,1.45513316]
[1673326764175,1.03594856,17223.0,17222.0,0.45513316]
[1673326764434,1.39788956,17223.0,17222.0,0.45513316]
[1673326764680,1.03594856,17223.0,17222.0,0.45513316]
[1673326766279,1.39788956,17223.0,17222.0,0.45513316]
[1673326766486,1.03594856,17223.0,17222.0,0.45513316]
[1673326767016,1.39788956,17223.0,17222.0,0.45513316]
[1673326767253,1.03594856,17223.0,17222.0,0.45513316]
[1673326767501,1.39788956,17223.0,17222.0,0.45513316]
[1673326767753,1.03594856,17223.0,17222.0,0.45513316]
[1673326768022,1.03594856,17223.0,17222.0,0.45522938]
[1673326768276,1.03594856,17223.0,17222.0,0.45513316]
[1673326769035,1.39788956,17223.0,17222.0,0.45513316]
[1673326769294,1.03594856,17223.0,17222.0,0.45522938]
[1673326769791,1.03594856,17223.0,17222.0,0.45513316]
[1673326770540,1.03594856,17223.0,17222.0,0.45521054]
[1673326771299,1.03594856,17223.0,17222.0,0.45513316]
[1673326775374,1.03594856,17223.0,17222.0,0.0388338]
[1673326775623,1.39788956,17223.0,17222.0,0.0388338]
[1673326775885,0.68757882,17223.0,17222.0,0.0388338]
[1673326776397,1.03594241,17223.0,17222.0,0.0388338]
[1673326777196,1.03594241,17223.0,17222.0,0.03900259]
[1673326777932,1.03594241,17223.0,17222.0,0.0388338]
[1673326778453,1.03594241,17223.0,17222.0,0.03900259]
[1673326778705,1.03594241,17223.0,17222.0,0.60035821]
[1673326778956,1.03594241,17223.0,17222.0,0.60018942]
[1673326779497,1.0358769,17223.0,17222.0,0.60186586]
[1673326779762,0.78375287,17223.0,17222.0,0.60018942]
[1673326780005,0.60961949,17223.0,17222.0,0.60018942]
[1673326785422,0.78377227,17223.0,17222.0,0.60018942]
[1673326785687,0.43540868,17223.0,17222.0,0.60018942]
[1673326786688,0.78376584,17223.0,17222.0,0.60018942]
[1673326786955,0.43540225,17223.0,17222.0,0.60018942]
[1673326788726,0.43540036,17223.0,17222.0,0.60018942]
[1673326794278,0.43540036,17224.0,17222.0,2.57542405]
[1673326794540,0.17414446,17224.0,17223.0,1.030641]
[1673326794804,0.45727961,17225.0,17223.0,0.90446469]
[1673326795100,0.45727961,17225.0,17224.0,1.529941]
[1673326795637,0.19602371,17225.0,17224.0,1.529941]
[1673326796131,0.02187925,17225.0,17224.0,1.529941]
[1673326796394,0.02187925,17225.0,17224.0,2.10595961]
[1673326796644,0.02187925,17225.0,17224.0,1.74401861]
[1673326797148,0.19602371,17225.0,17224.0,1.74401861]
[1673326797770,0.19602371,17225.0,17224.0,1.88501861]
[1673326797999,0.19602371,17225.0,17224.0,1.74401861]
[1673326798301,0.19602371,17225.0,17224.0,1.71701861]
[1673326798553,0.02187925,17225.0,17224.0,1.71701861]
[1673326798802,0.02187925,17225.0,17224.0,2.07895961]
[1673326799577,0.02179492,17225.0,17224.0,2.07895961]
[1673326799836,0.02179492,17225.0,17224.0,1.71701861]
[1673326800608,0.02179492,17225.0,17224.0,2.07895961]
[1673326800934,0.02179492,17225.0,17224.0,2.07945549]
[1673326801360,0.02179492,17225.0,17224.0,0.71751449]
[1673326801864,0.01862492,17225.0,17224.0,0.71751449]
[1673326802122,0.01862492,17225.0,17224.0,0.91751449]
[1673326802883,0.01862492,17225.0,17224.0,1.27703549]
[1673326803404,0.01862492,17225.0,17224.0,2.33477756]
[1673326803661,0.01862492,17225.0,17224.0,2.16068056]
[1673326803910,0.01862492,17225.0,17224.0,2.9332033]
[1673326804158,0.01862492,17225.0,17224.0,2.53902103]
[1673326804409,0.01862492,17225.0,17224.0,2.36519734]
[1673326804668,0.01862492,17225.0,17224.0,2.06519734]
[1673326804928,0.01862492,17225.0,17224.0,2.06419734]
[1673326806210,0.01862492,17225.0,17224.0,1.86419734]
[1673326806976,0.01862492,17225.0,17224.0,2.16419734]
[1673326807228,0.01862492,17225.0,17224.0,1.86419734]
[1673326809028,0.01862492,17225.0,17224.0,2.16419734]
[1673326809316,0.01862492,17225.0,17224.0,1.86419734]
[1673326809533,0.01862492,17225.0,17224.0,2.16419734]
[1673326809814,0.01862492,17225.0,17224.0,1.56558455]
[1673326810057,0.01862492,17225.0,17224.0,1.95957813]
[1673326810315,0.01862492,17225.0,17224.0,2.56109244]
[1673326810829,0.01862492,17225.0,17224.0,2.16709886]
[1673326811082,0.01862492,17225.0,17224.0,1.86709886]
[1673326811328,0.01862492,17225.0,17224.0,2.16709886]
[1673326811578,0.01862492,17225.0,17224.0,1.86709886]
[1673326811828,0.01862492,17225.0,17224.0,2.16709886]
[1673326812083,0.01862492,17225.0,17224.0,1.86709886]
[1673326814928,0.01862492,17225.0,17224.0,0.91071431]
[1673326818507,0.01862492,17225.0,17224.0,0.91121019]
[1673326822553,0.01862492,17225.0,17224.0,1.27315119]
[1673326823282,0.01862492,17225.0,17224.0,0.94601112]
[1673326824825,0.01862492,17225.0,17224.0,0.77681112]
[1673326825860,0.0157178,17225.0,17224.0,0.77681112]
[1673326828363,0.0157178,17225.0,17224.0,1.13875212]
[1673326828613,0.0157178,17225.0,17224.0,0.77681112]
[1673326829648,0.0157178,17225.0,17224.0,1.13875212]
[1673326830921,0.0157178,17225.0,17224.0,0.77681112]
[1673326832450,0.0157178,17225.0,17224.0,1.13875212]
[1673326832703,0.0036178,17225.0,17224.0,1.13875212]
[1673326833472,0.0036178,17225.0,17224.0,0.77681112]
[1673326833975,0.0036178,17225.0,17224.0,1.15063481]
[1673326834233,0.0036178,17225.0,17224.0,0.95063481]
[1673326834731,0.0036178,17225.0,17224.0,1.31257581]
[1673326834979,0.0036178,17225.0,17224.0,0.95063481]
[1673326835234,0.0036178,17225.0,17224.0,0.77681112]
[1673326835488,0.0036178,17225.0,17224.0,0.95063481]
[1673326835736,0.0036178,17225.0,17224.0,1.31257581]
[1673326837525,0.0036178,17225.0,17224.0,0.95063481]
[1673326838546,0.0036178,17225.0,17224.0,0.77681112]
[1673326839058,0.0036178,17225.0,17224.0,0.95063481]
[1673326839304,0.0036178,17225.0,17224.0,1.13875212]
[1673326839554,0.0036178,17225.0,17224.0,1.31257581]
[1673326840321,0.0036178,17225.0,17224.0,0.95063481]
[1673326841329,0.0036178,17225.0,17224.0,1.31257581]
[1673326842116,0.0036178,17225.0,17224.0,0.95063481]
[1673326844684,0.0036178,17225.0,17224.0,1.31257581]
[1673326845433,0.0036178,17225.0,17224.0,0.95063481]
[1673326846970,0.0036178,17225.0,17224.0,1.31257581]
[1673326847493,0.0036178,17225.0,17224.0,0.95063481]
[1673326848719,0.0036178,17225.0,17224.0,0.77681112]
[1673326848976,0.0036178,17225.0,17224.0,0.95063481]
[1673326849999,0.0036178,17225.0,17224.0,0.77681112]
[1673326850256,0.0036178,17225.0,17224.0,0.95063481]
[1673326850744,0.17776226,17225.0,17224.0,1.31257581]
[1673326850996,0.0036178,17225.0,17224.0,1.31257581]
[1673326851245,0.0036178,17225.0,17224.0,1.31207993]
[1673326851500,0.17776226,17225.0,17224.0,0.77640129]
[1673326852003,0.43901816,17225.0,17224.0,0.77640129]
[1673326852260,0.17776226,17225.0,17224.0,0.77640129]
[1673326853774,0.17776226,17225.0,17224.0,0.95022498]
[1673326854500,0.17776226,17225.0,17224.0,0.77640129]
[1673326856465,0.17776226,17225.0,17224.0,0.87640129]
[1673326856707,0.17776226,17225.0,17224.0,1.05022498]
[1673326857927,0.07776226,17225.0,17224.0,1.05022498]
[1673326863077,0.07776226,17225.0,17224.0,0.87640129]
[1673326863319,0.33901816,17225.0,17224.0,0.87631524]
[1673326863576,1.14101028,17225.0,17224.0,0.27480093]
[1673326864159,0.60961949,17225.0,17224.0,0.27480093]
[1673326865424,0.60961949,17225.0,17224.0,0.66576101]
[1673326865682,0.60961949,17225.0,17224.0,0.76576101]
[1673326866435,0.60961949,17225.0,17224.0,0.76792988]
[1673326866690,0.60961949,17225.0,17224.0,0.76576101]
[1673326866941,0.2612559,17225.0,17224.0,0.76576101]
[1673326867438,0.1612559,17225.0,17224.0,0.76576101]
[1673326867702,0.15183146,17225.0,17224.0,0.76576101]
[1673326867949,0.32592129,17225.0,17224.0,0.76576101]
[1673326870018,0.67428488,17225.0,17224.0,0.76576101]
[1673326870280,0.32592129,17225.0,17224.0,0.76576101]
[1673326870527,0.50019505,17225.0,17224.0,0.76576101]
[1673326872345,0.67424367,17225.0,17224.0,0.76576101]
[1673326872841,0.32588008,17225.0,17224.0,0.76576101]
[1673326873656,0.32588008,17225.0,17224.0,0.76792988]
[1673326874422,0.32588008,17225.0,17224.0,0.76576101]
[1673326877174,0.50019505,17225.0,17224.0,0.76576101]
[1673326877684,0.50019505,17225.0,17224.0,0.37480093]
[1673326877940,1.97839639,17225.0,17224.0,0.37480093]
[1673326878172,2.14599639,17225.0,17224.0,0.37480093]
[1673326878729,1.62549027,17225.0,17224.0,0.92002027]
[1673326878990,1.97348026,17225.0,17224.0,0.92002027]
[1673326879241,1.5551898,17225.0,17224.0,0.78002027]
[1673326879493,1.96936161,17225.0,17224.0,0.78002027]
[1673326879737,1.60742073,17225.0,17224.0,0.80602027]
[1673326879977,1.96936173,17225.0,17224.0,0.80602027]
[1673326881457,1.73118671,17225.0,17224.0,0.80602027]
[1673326882230,1.13847829,17225.0,17224.0,0.80602027]
[1673326882980,1.55676875,17225.0,17224.0,0.80602027]
[1673326883473,1.99213401,17225.0,17224.0,0.80602027]
[1673326883724,1.96808895,17225.0,17224.0,0.26080093]
[1673326885191,1.73118671,17225.0,17224.0,0.26100961]
[1673326885450,1.63017103,17225.0,17224.0,0.26080093]
[1673326885701,1.57382157,17225.0,17224.0,0.26080093]
[1673326885952,1.63017044,17225.0,17224.0,0.26080093]
[1673326886208,1.13845572,17225.0,17224.0,0.26080093]
[1673326887725,0.77651472,17225.0,17224.0,0.26080093]
[1673326887981,1.13845572,17225.0,17224.0,0.26080093]
[1673326888491,0.87387572,17225.0,17224.0,0.26080093]
[1673326888740,0.77651472,17225.0,17224.0,0.26080093]
[1673326888992,1.13835444,17225.0,17224.0,0.26080093]
[1673326890482,0.77641344,17225.0,17224.0,0.26080093]
[1673326890728,1.13835444,17225.0,17224.0,0.26080093]
[1673326891219,0.87377444,17225.0,17224.0,0.26080093]
[1673326891475,0.77641344,17225.0,17224.0,0.26080093]
[1673326892209,1.13835444,17225.0,17224.0,0.26080093]
[1673326893223,0.77641344,17225.0,17224.0,0.26080093]
[1673326895477,1.21183944,17225.0,17224.0,0.26080093]
[1673326895975,0.77647418,17225.0,17224.0,0.26080093]
[1673326896981,1.95835874,17225.0,17224.0,0.26080093]
[1673326897991,1.54006828,17225.0,17224.0,0.26080093]
[1673326898241,0.95085397,17225.0,17224.0,0.26080093]
[1673326898489,0.78335525,17225.0,17224.0,0.26080093]
[1673326898990,0.78335525,17225.0,17224.0,0.79542407]
[1673326899232,0.60904711,17225.0,17224.0,0.79542407]
[1673326906137,1.04441237,17225.0,17224.0,0.79542407]
[1673326906357,0.60904711,17225.0,17224.0,0.79542407]
[1673326909413,0.43514695,17225.0,17224.0,0.79542407]
[1673326914371,0.78313694,17225.0,17224.0,0.79542407]
[1673326914612,0.43513786,17225.0,17224.0,0.79542407]
[1673326917389,0.78312606,17225.0,17224.0,0.79542407]
[1673326917676,0.78312641,17225.0,17224.0,0.79542407]
[1673326917894,0.78312645,17225.0,17224.0,0.79542407]
[1673326918144,0.43513646,17225.0,17224.0,0.79542407]
[1673326918395,0.36513646,17225.0,17224.0,0.79542407]
[1673326921617,0.53904711,17225.0,17224.0,0.79542407]
[1673326923224,0.7131434,17225.0,17224.0,0.79542407]
[1673326923745,0.53904711,17225.0,17224.0,0.79542407]
[1673326924025,0.36515416,17225.0,17224.0,0.79542407]
[1673326924524,0.53904711,17225.0,17224.0,0.79542407]
[1673326926048,0.78335525,17225.0,17224.0,0.79542407]
[1673326926317,0.34798999,17225.0,17224.0,0.79542407]
[1673326926588,0.78335525,17225.0,17224.0,0.79542407]
[1673326926830,1.00400456,17225.0,17224.0,0.79542407]
[1673326927090,0.78335525,17225.0,17224.0,0.79542407]
[1673326927372,0.60917301,17225.0,17224.0,0.79542407]
[1673326927603,1.00400382,17225.0,17224.0,0.79542407]
[1673326928383,1.00400714,17225.0,17224.0,0.79542407]
[1673326928642,0.78335525,17225.0,17224.0,0.79553751]
[1673326929399,0.60918159,17225.0,17224.0,0.79542407]
[1673326929656,0.78335525,17225.0,17224.0,0.79553751]
[1673326930188,0.78335525,17225.0,17224.0,0.79542407]
[1673326930696,1.00556065,17225.0,17224.0,0.79542407]
[1673326931222,0.65757066,17225.0,17224.0,0.26080093]
[1673326931450,1.07447314,17225.0,17224.0,0.26080093]
[1673326932515,1.07447314,17225.0,17224.0,0.26296226]
[1673326932772,0.65757066,17225.0,17224.0,0.26080093]
[1673326934491,0.65757066,17225.0,17224.0,0.19080093]
[1673326934741,1.20582635,17225.0,17224.0,0.19080093]
[1673326934992,0.85757066,17225.0,17224.0,0.19080093]
[1673326935252,0.83565616,17225.0,17224.0,0.19080093]
[1673326936788,1.27091714,17225.0,17224.0,0.19080093]
[1673326937303,0.83565616,17225.0,17224.0,0.19080093]
[1673326937570,1.00485616,17225.0,17224.0,0.19080093]
[1673326937824,1.98464981,17225.0,17224.0,0.19080093]
[1673326938310,2.50617346,17225.0,17224.0,0.19080093]
[1673326938820,2.50617346,17225.0,17224.0,0.16480093]
[1673326939073,2.50617346,17225.0,17224.0,0.09480093]
[1673326939593,2.51617346,17225.0,17224.0,0.09480093]
[1673326941129,2.51617346,17225.0,17224.0,0.10080093]
[1673326942463,1.99464981,17225.0,17224.0,0.10080093]
[1673326948342,2.42943789,17225.0,17224.0,0.10080093]
[1673326948571,1.99464981,17225.0,17224.0,0.10080093]
[1673326948800,2.42943189,17225.0,17224.0,0.10080093]
[1673326949040,2.77725224,17225.0,17224.0,0.10080093]
[1673326949764,2.42943189,17225.0,17224.0,0.10080093]
[1673326950242,1.99464981,17225.0,17224.0,0.10080093]
[1673326951695,1.74597988,17225.0,17224.0,0.10080093]
[1673326951944,0.79263348,17225.0,17224.0,0.33847882]
[1673326952188,0.44476803,17225.0,17224.0,0.70653072]
[1673326952444,0.01,17225.0,17224.0,0.70653072]
[1673326952688,0.18390596,17225.0,17224.0,0.70653072]
[1673326953423,0.01,17225.0,17224.0,0.70653072]
[1673326954194,0.45848169,17226.0,17224.0,0.70053072]
[1673326954441,0.45848169,17226.0,17224.0,0.79753072]
[1673326954715,1.11986758,17226.0,17224.0,0.79753072]
[1673326954956,0.17390596,17225.0,17224.0,0.79753072]
[1673326955202,0.17390596,17225.0,17224.0,0.70053072]
[1673326955445,0.17390596,17225.0,17224.0,0.79753072]
[1673326955951,0.17390596,17225.0,17224.0,0.79773631]
[1673326956202,0.17390596,17225.0,17224.0,0.70073631]
[1673326956466,0.43476803,17225.0,17224.0,0.79773631]
[1673326956720,0.43476803,17225.0,17224.0,0.79753072]
[1673326956961,0.17390596,17225.0,17224.0,0.79773631]
[1673326957449,1.29379633,17226.0,17224.0,0.79773631]
[1673326957450,1.46770229,17226.0,17224.0,0.79773631]
[1673326957703,0.17390596,17225.0,17224.0,0.79773631]
[1673326958202,0.17390596,17225.0,17224.0,0.70073631]
[1673326959439,0.17390596,17225.0,17224.0,0.70053072]
[1673326959677,0.17390596,17225.0,17224.0,0.79753072]
[1673326959926,0.17390596,17225.0,17224.0,0.7021061]
[1673326960169,0.17390596,17225.0,17224.0,0.79753072]
[1673326960421,0.43476803,17225.0,17224.0,0.79753072]
[1673326961177,0.43476803,17225.0,17224.0,0.7991061]
[1673326961448,0.43476803,17225.0,17224.0,0.79753072]
[1673326962448,0.43476803,17225.0,17224.0,0.7991061]
[1673326962690,0.63476803,17225.0,17224.0,0.79340613]
[1673326962930,0.37390596,17225.0,17224.0,0.79340613]
[1673326963685,0.17390596,17225.0,17224.0,0.79340613]
[1673326966404,0.17390596,17225.0,17224.0,0.79210483]
[1673326966643,0.17390596,17225.0,17224.0,0.79183075]
[1673326967668,0.17390596,17225.0,17224.0,0.79210483]
[1673326969245,0.17390596,17225.0,17224.0,0.79183075]
[1673326969507,0.17390596,17225.0,17224.0,0.79210483]
[1673326969761,0.17390596,17225.0,17224.0,0.79183075]
[1673326970491,0.17390596,17225.0,17224.0,0.79360144]
[1673326970711,0.17390596,17225.0,17224.0,0.79183075]